Cogmind - Beta 12 @@@ ROGUE MODE // 2023.04.18 @ 19:40:29 Player: Decinym Result: Destroyed by YI-UF0 with YI-UF0's Doublenader Performance ------------- Evolutions (0) 0 Regions Visited (2) 400 Robots Destroyed (21) 105 Value Destroyed (334) 334 Prototype IDs (0) 0 Alien Tech Used (0) 0 Bonus (0) 0 TOTAL SCORE: 839 Bonus ------- None Cogmind --------- Core Integrity 0/250 Matter 264/300 Energy 57/125 System Corruption 0% Temperature Cool (0) Movement Treading (240) Ox1 Location -10/Mines Parts ------- > --- POWER (1) -------- Light Ion Engine > --- PROPULSION (2) --- Light Treads Light Treads > --- UTILITY (2) ------ Cooling System High-capacity Storage Unit > --- WEAPON (2) ------- Beamcaster > --- INVENTORY (20) --- Ion Engine Light Treads Light Treads Wheel Compact Wheel Compact Wheel Compact Wheel Cooling System Small Storage Unit High-capacity Storage Unit Huge Storage Unit Targeting Computer Hacking Suite Mini Grenade Launcher Mini Grenade Launcher Mini Grenade Launcher Mini Grenade Launcher Mining Laser Peak State ------------ > --- POWER ------------ Light Ion Engine > --- PROPULSION ------- Light Treads Light Treads > --- UTILITY ---------- Cooling System High-capacity Storage Unit > --- WEAPON ----------- Beamcaster > --- INVENTORY -------- Ion Engine Light Treads Light Treads Wheel Compact Wheel Compact Wheel Compact Wheel Cooling System Small Storage Unit High-capacity Storage Unit Huge Storage Unit Targeting Computer Hacking Suite Mini Grenade Launcher Mini Grenade Launcher Mini Grenade Launcher Mini Grenade Launcher Mining Laser [Rating: 13] Favorites ----------- Power Light Ion Engine Engine Light Ion Engine Propulsion Compact Wheel Treads Light Treads Leg Aluminum Leg Wheel Compact Wheel Utility Cooling System Device Cooling System Storage High-capacity Storage Unit Weapon Heavy EM Pulse Gun Energy Gun Heavy EM Pulse Gun Ballistic Gun Light Assault Rifle Launcher Mini Grenade Launcher Build | -11 -10 -10 ------- Run | Jun Mat Min Slots Evolved . | . . . Power . | . . . Propulsion . | . . . Utility . | . . . Weapon . | . . . Parts Attached 19 | . 13 6 Power . | . . . Engine . | . . . Core . | . . . Reactor . | . . . Propulsion 6 | . 4 2 Treads 2 | . . 2 Leg . | . . . Wheel 4 | . 4 . Hover . | . . . Flight . | . . . Utility 3 | . 3 . Device 1 | . 1 . Storage 2 | . 2 . Processor . | . . . Hackware . | . . . Protection . | . . . Artifact . | . . . Weapon 10 | . 6 4 Energy Gun 8 | . 5 3 Energy Cannon . | . . . Ballistic Gun . | . . . Ballistic Cannon . | . . . Launcher 2 | . 1 1 Special Weapon . | . . . Impact Weapon . | . . . Slashing Weapon . | . . . Piercing Weapon . | . . . Special Melee Weapon . | . . . Unidentified Prototypes . | . . . Parts Lost 6 | . 3 3 Power . | . . . Propulsion 1 | . 1 . Utility . | . . . Weapon 5 | . 2 3 Highest Loss Streak 2 | . 2 2 To Critical Strikes . | . . . Average Slot Usage (%) 97 | . 97 99 Engine 14 | . 14 14 Leg 3 | . 5 . Wheel 24 | . 22 27 Device 12 | . 11 14 Storage 14 | . 14 14 Energy Gun 24 | . 23 26 Ballistic Gun 3 | . 4 . Naked Turns . | . . . Heaviest Build 91 | 10 91 51 Greatest Support 40 | 20 32 40 Greatest Overweight (x) 3 | . 3 1 Average Overweight (x) 1 | . 1 1 Largest Inventory Capacity 25 | . 25 20 Average Capacity 19 | . 18 20 Most Carried 19 | . 19 19 Average Carried 15 | . 14 18 Final Capacity 20 | 8 20 20 Final Carried 18 | 6 18 18 Class Distribution -------------------- 100% | Mutant Dominant Class ---------------- Mutant | -10/Materials Mutant | -10/Mines Resources | -11 -10 -10 ----------- Run | Jun Mat Min Matter Collected 378 | 200 139 39 Remotely . | . . . Salvage Created 654 | . 594 60 Parts 44 | . 42 2 Haulers Intercepted 2 | . 2 . Recyclers Shooed . | . . . Parts Field Recycled . | . . . Retrieved Matter . | . . . Parts Self-Destructed . | . . . Prevented . | . . . Kills | -11 -10 -10 ------- Run | Jun Mat Min Combat Hostiles Destroyed 17 | . 11 6 Guns 9 | . 7 2 AOE 8 | . 4 4 Classes Destroyed 8 | . 7 1 Worker 2 | . 2 . Hauler 2 | . 2 . Recycler 2 | . 2 . Operator 1 | . 1 . Watcher 1 | . 1 . Swarmer 7 | . 5 2 Grunt 6 | . 6 . Assembled 4 | . . 4 Best Kill Streak 6 | . 4 6 Combat Bots Only 6 | . 3 6 Max Kills in Single Turn 3 | . 3 2 Gunslinging . | . . . Exploded 2 | . 2 2 Melee . | . . . Uniques/NPCs Destroyed . | . . . Combat | -11 -10 -10 -------- Run | Jun Mat Min Damage Taken 720 | . 416 304 Core 257 | . 110 147 Absorbed by Shields . | . . . Core Remaining (%) 100 | 100 . . Volleys Fired 46 | . 37 9 Largest 2 | . 2 2 Hottest 90 | . 90 85 Shots Fired 87 | . 73 14 Gun 83 | . 72 11 Cannon . | . . . Launcher 4 | . 1 3 Special . | . . . Kinetic 8 | . 8 . Thermal 1 | . . 1 Explosive 4 | . 1 3 Electromagnetic 74 | . 64 10 Robot Hit Streak 5 | . 5 3 Robot Miss Streak 5 | . 5 3 Penetration Max . | . . . Secondary Targets 1 | . 1 . Max Gunslinging Chain 1 | . 1 . Shots Hit Robots 42 | . 36 6 Core Hits 27 | . 20 7 Critical Kills . | . . . Critical Parts Destroyed . | . . . Critical Strikes 2 | . 2 . Corrupt 2 | . 2 . Melee Attacks . | . . . Impact . | . . . Slashing . | . . . Piercing . | . . . Sneak Attacks . | . . . Combat Hostiles . | . . . Follow-up Attacks . | . . . Damage Inflicted 1246 | . 979 267 Guns 609 | . 550 59 Cannons . | . . . Explosions 624 | . 416 208 Melee . | . . . Ramming 13 | . 13 . Kinetic 43 | . 43 . Thermal 289 | . 267 22 Explosive 357 | . 149 208 Electromagnetic 544 | . 507 37 Impact . | . . . Slashing . | . . . Piercing . | . . . Highest Corruption . | . . . Average Corruption . | . . . Corruption Purged . | . . . Corruption Blocked . | . . . Overload Shots . | . . . Overflow Damage 42 | . 24 18 Projectiles . | . . . Explosions 42 | . 24 18 Melee . | . . . Knockbacks . | . . . Impact . | . . . Kinetic . | . . . Secondary . | . . . Self-Inflicted Damage 118 | . 56 62 Shots 4 | . 2 2 Rammed . | . . . Targets Rammed 2 | . 2 . Kicked 2 | . 2 . Crushed . | . . . Highest Temperature 222 | . 222 . Average Temperature 121 | . 121 . Received Heat Transfer 60 | . 60 . Siege Activations . | . . . Robots Corrupted . | . . . Combat Hostiles . | . . . Parts Fried . | . . . Impact Corruptions . | . . . Robots Melted . | . . . Combat Hostiles . | . . . Parts Melted . | . . . Heat Transferred 387 | . 350 37 Parts Sabotaged . | . . . Parts Stolen . | . . . Parts Stripped . | . . . Power Chain Reactions 4 | . 4 . Missiles Intercepted . | . . . Alert | -11 -10 -10 ------- Run | Jun Mat Min Peak Influence 257 | . 257 137 Initial 100 | . . 100 Average 119 | . 116 125 Maximum Alert Level 1 | . 1 . Low Security (%) 86 | . 81 100 Level 1 13 | . 18 . Level 2 . | . . . Level 3 . | . . . Level 4 . | . . . Level 5 . | . . . High Security . | . . . Max Security . | . . . Squads Dispatched 2 | . 2 . Investigation 2 | . 2 . Extermination . | . . . Reinforcement . | . . . Assault . | . . . Garrison . | . . . Intercept . | . . . Searches Triggered . | . . . Construction Impeded . | . . . Haulers Reinforced . | . . . Active Scanning Responses . | . . . Cargo Convoy Interrupts . | . . . Stealth | -11 -10 -10 --------- Run | Jun Mat Min Distress Signals . | . . . Communications Jammed . | . . . Distress Signals . | . . . Times Spotted 29 | . 21 8 Peak Tracking Total 8 | . 3 8 Tactical Retreats 1 | . . 1 Traps | -11 -10 -10 ------- Run | Jun Mat Min Traps Triggered 1 | . 1 . Indirectly . | . . . Trap Hack Attempts . | . . . Triggered . | . . . Disarmed . | . . . Reprogrammed . | . . . Reused . | . . . Traps Extracted . | . . . Installed . | . . . Triggered . | . . . Machines | -11 -10 -10 ---------- Run | Jun Mat Min Machines Disabled 1 | . 1 . Max in Single Turn 1 | . 1 . Machines Repaired . | . . . Machines Sabotaged . | . . . Overloaded Fab Kills . | . . . Hacking | -11 -10 -10 --------- Run | Jun Mat Min Machines Accessed 6 | . 6 . Terminals 4 | . 4 . Fabricators . | . . . Repair Stations 1 | . 1 . Recycling Units 1 | . 1 . Scanalyzers . | . . . Garrison Access . | . . . Total Hacks 15 | . 15 . Successful 2 | . 2 . Failed 12 | . 12 . Catastrophic 2 | . 2 . Database Lockouts 1 | . 1 . Manual 14 | . 14 . Terminals 12 | . 12 . Fabricators . | . . . Repair Stations 1 | . 1 . Recycling Units 2 | . 2 . Scanalyzers . | . . . Garrison Access . | . . . Terminal Hacks 1 | . 1 . Robot Analysis 1 | . 1 . Fabricator Hacks . | . . . Repair Station Hacks . | . . . Recycling Unit Hacks . | . . . Scanalyzer . | . . . Garrison Access Hacks . | . . . Unauthorized Hacks 1 | . 1 . Terminals . | . . . Fabricators . | . . . Repair Stations . | . . . Recycling Units 1 | . 1 . Tunnel 1 | . 1 . Scanalyzers . | . . . Garrison Access . | . . . Data Cores Recovered 1 | . 1 . Used . | . . . Hacking Detections 6 | . 6 . Full Trace Events 1 | . 1 . Feedback Events . | . . . Feedback Blocked . | . . . Robot Schematics Acquired . | . . . Robots Built . | . . . Authchips . | . . . Time . | . . . Total Robot Build Rating . | . . . Part Schematics Acquired . | . . . Parts Built . | . . . Authchips . | . . . Time . | . . . Total Part Build Rating . | . . . Parts Repaired . | . . . Time . | . . . Parts Recycled . | . . . Recycled Matter . | . . . Retrieved Matter . | . . . Retrieved Components . | . . . Parts Scanalyzed . | . . . Part Schematics Acquired . | . . . Parts Damaged . | . . . Bothacking | -11 -10 -10 ------------ Run | Jun Mat Min Used RIF Installer . | . . . Robots Hacked . | . . . Non-combat . | . . . Combat . | . . . Robot Hacks Applied . | . . . Relay Couplers Released . | . . . Fabnet Peak Effective % . | . . . Robots Rewired . | . . . Allies Hacked . | . . . Hacks Repelled . | . . . Allies | -11 -10 -10 -------- Run | Jun Mat Min Total Allies 1 | . . 1 Largest Group 1 | . . 1 Highest-Rated Group 31 | . . 31 Highest-Rated Ally 31 | . . 31 Total Orders . | . . . Ally Attacks 6 | . . 6 Total Damage . | . . . Kills . | . . . Allies Corrupted . | . . . Allies Melted . | . . . Intel | -11 -10 -10 ------- Run | Jun Mat Min Robot Analysis Total 1 | . 1 . Derelict Logs Recovered . | . . . Drone Launches . | . . . Drone Recoveries . | . . . Exploration | -11 -10 -10 ------------- Run | Jun Mat Min Turns Passed 1073 | . 771 302 Spaces Moved 755 | 1 521 233 Core . | . . . Treads 1 | . . 1 Legs 96 | 1 95 . Wheels 658 | . 426 232 Hover . | . . . Flight . | . . . Fastest Speed 100 | 120 100 115 Average Speed 116 | 120 117 115 Slowest Speed 240 | 120 135 240 Overloaded Moves . | . . . Propulsion Burnouts . | . . . Robots Hopped . | . . . Cave-ins Triggered . | . . . Exploration Rate (%) 37 | 2 68 43 Regions Visited 2 Branch Regions 1 Pre-discovered Areas 1 | . 1 . Known Exits Taken . | . . . Unknown Exits Taken 2 | 1 1 . Scrap Searched 1 | . . 1 Spaces Dug . | . . . Terrain Destroyed 57 | . 22 35 Melee . | . . . Projectile . | . . . AOE 57 | . 22 35 Terrain Rammed . | . . . Walls Destroyed . | . . . Machines Disabled . | . . . Actions | -11 -10 -10 --------- Run | Jun Mat Min Total 855 | . 605 250 Wait 11 | . 11 . Move 753 | . 520 233 Hop . | . . . Pick Up 18 | . 16 2 Fast Attach 5 | . 5 . Attach 5 | . 3 2 Detach . | . . . Swap 9 | . 5 4 Drop 6 | . 6 . Fire 46 | . 37 9 Melee . | . . . Ram . | . . . Kick 2 | . 2 . Crush . | . . . Escape Stasis . | . . . Rewire . | . . . Trap . | . . . Miscellaneous . | . . . Route ------- -11/Junkyard -10/Materials (discovered 3 exits: [*Mat x2] / [*Min]) -10/Mines History --------- Turn | Location | Event 1 | -11/Junkyard | Discovered new exit (range 0) 1 | -11/Junkyard | Entered Materials 253 | -10/Materials | Discovered new exit (range 4) 302 | -10/Materials | Build established: Mutant 659 | -10/Materials | Discovered new exit (range 9) 673 | -10/Materials | Discovered new exit (range 16) 705 | -10/Materials | Central database locked down 772 | -10/Materials | Entered Mines 775 | -10/Mines | Received a Mining Laser from a helpful Derelict 838 | -10/Mines | Assembled infested the area 857 | -10/Mines | Core integrity fell below 50% 1073 | -10/Mines | Core integrity fell below 20% 1074 | -10/Mines | Destroyed by YI-UF0 with YI-UF0's Doublenader Last Messages --------------- 00858_ as-87200 destroyed. 00862_ I5-5LG(g) destroyed. 00863_ S-10 Pest destroyed. 00865_ The unstable cave ceiling collapses. 00866_ S-10 Pest destroyed. 00871_ Acquired 20 matter. 00873_ K-01 Serf collects debris. 00873_ Acquired Beamcaster. 00877_ K-01 Serf collects debris. 00883_ The unstable cave ceiling collapses. 00888_ Acquired 19 matter. 00899_ K-01 Serf collects debris. 01039_ A derelict is hurriedly installing traps. 01039_ K-01 Serf collects debris. 01041_ 16-D9J(g): "Hehe, this'll put a wrench in their mining defense operations..." 01041_ 16-D9J(g) slips into the shadows. 01061_ EM Pulse Gun destroyed. 01063_ The unstable cave ceiling collapses. 01063_ Hvy. EM Pulse Gun destroyed. Map ----- +----------------------------------------------------+ | | | | | | | | | | | | | | | | | | | ??????????????????????????????? | | ??????????????????????????????? | | ???????????????####???????????? | | ??????????????? #??????????? | | ???????????????? #?????????? | | ???????????????? ##???????? | | ?????????????????"" #####??? | | ??????????????????" ##?? | | ??????????????#???? ##? | | ??????????????? ???? #? | | ?????????? ?? ???# #? | | ?????????? # ??# ## | | ?????????? ## # | | ?????????? =%! g #? | | ?????????????# = ### #? | | ?????????????????????# #? | | ?????????????????????# @ #? | | ?????????????????????# #? | | ?????????????????????## ## | | ??????????????????????## # | | ??????????????#######?# # | | ??????????????# ^ ### # | | ??????????????# ^ # # # | | ??????????????# # # | | ????????????????# ^ ####### | | ??????????????# ## ##?????? | | ??????????????# ^ #??????? | | ??????????????####### #??????? | | ????????????????????# #??????? | | ????????????????????#k #??????? | | ????????????????????# #??????? | | ????????????????????# #??????? | | ?????????????######## #??????? | | ?????????????# #??????? | | ??????????#### ##### ###??????? | | ??????????# #???# #????????? | | ??????????# ####???# #????????? | | ??????????# #??????# #????????? | | ?????###### #??????# #????????? | | ?????# #??????# #????????? | | ###### ######?????## #????????? | +----------------------------------------------------+ Best States ------------- Heat Dissipation 47 Energy Generation 10 Energy Capacity 125 Matter Stores 300 Matter Capacity 300 Sight Range 16 Terrain Scan Density 10 Evasion (%) 55 Recoil Reduction 2 Item Schematics ----------------- None Robot Schematics ------------------ None Fabricated ------------ Nothing Alien Tech Used ----------------- None Achievements -------------- None Challenges ------------ None Game ------ Seed SignalMasterRefractor Manual? 0 Play Time 00:09:25 Cumulative 305.3 hours Start 2023.04.18 @ 19:33:07 End 2023.04.18 @ 19:40:29 Sessions 1 Manual Loads 0 Difficulty Rogue Special Mode None Game No. 340 Rogue 340 Adventurer 0 Explorer 0 Win Type - Total 27 Types 16/3/2/1/2/0/3/0/0 Lore% 83 Gallery% 80 Achievement% 82 Wizard Run 0 Options --------- ASCII 0 Keyboard 0 Movement Arrows Keybinds 0 Fullscreen 2 Font 24/Smallcaps Map View 76x50 Tactical HUD 1 Map Filters NONE Filters NONE Steam 1 RUN: 1a6be6b7-7599-4ecf-932f-f1bfb64d9c30